bitfinex/quotes_BTCUSD_20240927
["timestamp","ask_amount","ask_price","bid_price","bid_amount"]
[1727478094531,0.003656,66025.0,66024.0,0.17889401]
[1727478094753,0.003656,66025.0,66024.0,0.15814475]
[1727478094969,0.003656,66025.0,66024.0,0.17889397]
[1727478096602,0.003656,66025.0,66024.0,0.17689397]
[1727478102132,0.003656,66025.0,66024.0,0.17691124]
[1727478103055,0.003656,66025.0,66024.0,0.21013269]
[1727478103743,0.003656,66025.0,66024.0,0.21213269]
[1727478104176,0.003656,66025.0,66024.0,0.2120966]
[1727478104427,0.003656,66025.0,66024.0,0.2100966]
[1727478105461,0.003656,66025.0,66024.0,0.20706785]
[1727478109337,0.003656,66025.0,66024.0,0.153116]
[1727478109606,0.003656,66025.0,66024.0,0.2068566]
[1727478112548,0.003656,66025.0,66024.0,0.20687517]
[1727478113031,0.003656,66025.0,66024.0,0.153116]
[1727478113271,0.003656,66025.0,66024.0,0.20682974]
[1727478116706,0.003656,66025.0,66024.0,0.153116]
[1727478116955,0.003656,66025.0,66024.0,0.2069308]
[1727478117256,0.003656,66025.0,66024.0,0.153116]
[1727478117464,0.003656,66025.0,66024.0,0.20702975]
[1727478119809,0.003656,66025.0,66024.0,0.20902975]
[1727478120052,0.003656,66025.0,66024.0,0.20702975]
[1727478120541,0.003656,66025.0,66024.0,0.155116]
[1727478120757,0.003656,66025.0,66024.0,0.20906895]
[1727478123230,0.003656,66025.0,66024.0,0.28067592]
[1727478123480,0.003656,66025.0,66024.0,0.23519453]
[1727478123718,0.003656,66025.0,66024.0,0.23319453]
[1727478123959,0.003656,66025.0,66024.0,0.23519453]
[1727478124622,0.003656,66025.0,66024.0,0.3496171]
[1727478124897,0.003656,66025.0,66024.0,0.34658826]
[1727478130361,0.003656,66025.0,66024.0,0.29253857]
[1727478130602,0.003656,66025.0,66024.0,0.19886729]
[1727478130804,0.003656,66025.0,66024.0,0.23206936]
[1727478131019,0.003656,66025.0,66024.0,0.23509797]
[1727478132349,0.003656,66025.0,66024.0,0.2805745]
[1727478133033,0.003656,66025.0,66024.0,0.23509797]
[1727478133948,0.003656,66025.0,66024.0,0.2320491]
[1727478137605,0.003656,66025.0,66024.0,0.23214855]
[1727478138072,0.003656,66025.0,66024.0,0.23214957]
[1727478139662,0.003656,66025.0,66024.0,0.30036102]
[1727478140314,0.003656,66025.0,66024.0,0.23214957]
[1727478141185,0.003656,66025.0,66024.0,0.30036102]
[1727478141416,0.003656,66025.0,66024.0,0.23214957]
[1727478142980,0.003656,66025.0,66024.0,0.27762089]
[1727478143188,0.003656,66025.0,66024.0,0.23214957]
[1727478144681,0.003656,66025.0,66024.0,0.27562258]
[1727478144897,0.003656,66025.0,66024.0,0.22158901]
[1727478145110,0.003656,66025.0,66024.0,0.27561458]
[1727478145325,0.003656,66025.0,66024.0,0.27761458]
[1727478146206,0.003656,66025.0,66024.0,0.27561458]
[1727478148682,0.003656,66025.0,66024.0,0.22158901]
[1727478148900,0.003656,66025.0,66024.0,0.27562702]
[1727478149567,0.003656,66025.0,66024.0,0.27762756]
[1727478152106,0.003656,66025.0,66024.0,0.27759018]
[1727478154058,0.003656,66025.0,66024.0,0.27559018]
[1727478154514,0.003656,66025.0,66024.0,0.27559251]
[1727478155568,0.003656,66025.0,66024.0,0.22159188]
[1727478155802,0.003656,66025.0,66024.0,0.27563299]
[1727478156455,0.003656,66025.0,66024.0,0.23015711]
[1727478156873,0.003656,66025.0,66024.0,0.23215711]
[1727478158226,0.003656,66025.0,66024.0,0.23216845]
[1727478159075,0.003656,66025.0,66024.0,0.178116]
[1727478159289,0.003656,66025.0,66024.0,0.23220378]
[1727478160170,0.003656,66025.0,66024.0,0.23523238]
[1727478160394,0.003656,66025.0,66024.0,0.4898462]
[1727478160610,0.003656,66025.0,66024.0,0.50955554]
[1727478161242,0.003656,66025.0,66024.0,0.40975554]
[1727478161243,0.002656,66025.0,66024.0,0.40975554]
[1727478161650,0.003656,66025.0,66024.0,0.40975554]
[1727478161853,0.002656,66025.0,66024.0,0.40975554]
[1727478162058,0.003656,66025.0,66024.0,0.40975554]
[1727478163357,0.003656,66025.0,66024.0,0.31880378]
[1727478164002,0.003656,66025.0,66024.0,0.40975554]
[1727478164212,0.003656,66025.0,66024.0,0.23720378]
[1727478165764,0.003656,66025.0,66024.0,0.32815891]
[1727478168839,0.003656,66025.0,66024.0,0.23720378]
[1727478169784,0.003656,66025.0,66024.0,0.23715152]
[1727478173149,0.003656,66025.0,66024.0,0.183116]
[1727478173350,0.003656,66025.0,66024.0,0.23713048]
[1727478175390,0.003656,66025.0,66024.0,0.23713758]
[1727478177216,0.003656,66025.0,66024.0,0.23712264]
[1727478180300,0.003656,66025.0,66024.0,0.23714025]
[1727478182532,0.003656,66025.0,66024.0,0.3280994]
[1727478182715,0.003656,66025.0,66024.0,0.23714025]
[1727478184642,0.003656,66025.0,66024.0,0.2371426]
[1727478186614,0.003656,66025.0,66024.0,0.24434424]
[1727478187414,0.003656,66025.0,66024.0,0.35803143]
[1727478187818,0.003656,66025.0,66024.0,0.24434424]
[1727478188426,0.003656,66025.0,66024.0,0.33529453]
[1727478188991,0.002656,66025.0,66024.0,0.33529453]
[1727478189215,0.003656,66025.0,66024.0,0.34029453]
[1727478189845,0.002656,66025.0,66024.0,0.28626793]
[1727478190096,0.003656,66025.0,66024.0,0.35474048]
[1727478190314,0.003656,66025.0,66024.0,0.30026793]
[1727478190513,0.003656,66025.0,66024.0,0.35474095]
[1727478190721,0.002656,66025.0,66024.0,0.34074095]
[1727478191175,0.002656,66025.0,66024.0,0.35474095]
[1727478192659,0.002656,66025.0,66024.0,0.35473832]
[1727478193304,0.002656,66025.0,66024.0,0.3002653]
[1727478193517,0.002656,66025.0,66024.0,0.35471967]
[1727478197600,0.002656,66025.0,66024.0,0.3547186]
[1727478198002,0.002656,66025.0,66024.0,0.30026423]
[1727478198676,0.002656,66025.0,66024.0,0.32121489]
[1727478198890,0.002656,66025.0,66024.0,0.35473595]
[1727478200033,0.002656,66025.0,66024.0,0.26378936]
[1727478200272,0.002656,66025.0,66024.0,0.20931764]
[1727478200484,0.002656,66025.0,66024.0,0.26378509]
[1727478201339,0.002656,66025.0,66024.0,0.35473168]
[1727478201545,0.002656,66025.0,66024.0,0.26378509]
[1727478202602,0.002656,66025.0,66024.0,0.35473955]
[1727478203214,0.002656,66025.0,66024.0,0.26378509]
[1727478203422,0.002656,66025.0,66024.0,0.35473955]
[1727478203642,0.002656,66025.0,66024.0,0.20931764]
[1727478203851,0.002656,66025.0,66024.0,0.35477289]
[1727478204061,0.002656,66025.0,66024.0,0.35476435]
[1727478204271,0.002656,66025.0,66024.0,0.26380862]
[1727478206187,0.002656,66025.0,66024.0,0.35476435]
[1727478206394,0.002656,66025.0,66024.0,0.26380862]
[1727478207244,0.002656,66025.0,66024.0,0.37750169]
[1727478207451,0.002656,66025.0,66024.0,0.26380862]
[1727478207891,0.002656,66025.0,66024.0,0.35476672]
[1727478208102,0.002656,66025.0,66024.0,0.26380862]
[1727478208694,0.002656,66025.0,66024.0,0.35476601]
[1727478208903,0.002656,66025.0,66024.0,0.26380862]
[1727478209113,0.002656,66025.0,66024.0,0.35476564]
[1727478209336,0.002656,66025.0,66024.0,0.26380862]
[1727478209763,0.002656,66025.0,66024.0,0.37750169]
[1727478209980,0.002656,66025.0,66024.0,0.35476105]
[1727478210194,0.002656,66025.0,66024.0,0.26380862]
[1727478210588,0.002656,66025.0,66024.0,0.35476258]
[1727478211166,0.177556,66025.0,66024.0,0.23380862]
[1727478211618,0.177556,66025.0,66024.0,0.30202961]
[1727478212034,0.177556,66025.0,66024.0,0.23380862]
[1727478213209,0.177556,66025.0,66024.0,0.27928917]
[1727478213442,0.177556,66025.0,66024.0,0.32065579]
[1727478214165,0.177556,66025.0,66024.0,0.31993775]
[1727478214400,0.177556,66025.0,66024.0,0.2744572]
[1727478215434,0.177556,66025.0,66024.0,0.23309217]
[1727478221290,0.177556,66025.0,66024.0,0.17931764]
[1727478221543,0.177556,66025.0,66024.0,0.23307616]
[1727478222306,0.177556,66025.0,66024.0,0.2330689]
[1727478225568,0.177556,66025.0,66024.0,0.23289387]
[1727478228986,0.177556,66025.0,66024.0,0.19993488]
[1727478229278,0.177556,66025.0,66024.0,0.25353955]
[1727478230605,0.177556,66025.0,66024.0,0.23292231]
[1727478232553,0.177556,66025.0,66024.0,0.23288778]
[1727478234091,0.097556,66025.0,66024.0,0.23288778]
[1727478236507,0.097556,66025.0,66024.0,0.17931764]
[1727478236720,0.097556,66025.0,66024.0,0.23289509]
[1727478237155,0.097556,66025.0,66024.0,0.28647535]
[1727478240236,0.097556,66025.0,66024.0,0.23289509]
[1727478240467,0.097556,66025.0,66024.0,0.28644862]
[1727478240721,0.097556,66025.0,66024.0,0.23287117]
[1727478246590,0.097556,66025.0,66024.0,0.23279421]
[1727478246837,0.097556,66025.0,66024.0,0.17931764]
[1727478247099,0.097556,66025.0,66024.0,0.23281685]
[1727478248134,0.097556,66025.0,66024.0,0.23481685]
[1727478248377,0.097556,66025.0,66024.0,0.23281685]
[1727478248378,0.002656,66025.0,66024.0,0.23281685]
[1727478248606,0.002656,66025.0,66024.0,0.30095913]
[1727478248825,0.002656,66025.0,66024.0,0.23281685]
[1727478250346,0.002656,66025.0,66024.0,0.23264081]
[1727478252323,0.002656,66025.0,66024.0,0.23566959]
[1727478253038,0.002656,66025.0,66024.0,0.23766959]
[1727478253247,0.002656,66025.0,66024.0,0.30580037]
[1727478254117,0.002656,66025.0,66024.0,0.30589871]
[1727478254775,0.002656,66025.0,66024.0,0.23776793]
[1727478255288,0.001656,66025.0,66024.0,0.28689871]
[1727478255529,0.003656,66025.0,66024.0,0.3128988]
[1727478255786,0.002656,66025.0,66024.0,0.23276793]
[1727478256260,0.003656,66025.0,66024.0,0.3148988]
[1727478257507,0.003656,66025.0,66024.0,0.24476793]
[1727478257728,0.003656,66025.0,66024.0,0.21191187]
[1727478257959,0.002656,66025.0,66024.0,0.23081659]
[1727478258179,0.002656,66025.0,66024.0,0.24481862]
[1727478258398,0.002656,66025.0,66024.0,0.24681862]
[1727478260909,0.002656,66025.0,66024.0,0.24691024]
[1727478261117,0.002656,66025.0,66024.0,0.19334642]
[1727478261316,0.002656,66025.0,66024.0,0.24690936]
[1727478261474,0.002656,66025.0,66024.0,0.24690925]
[1727478263258,0.002656,66025.0,66024.0,0.22630823]
[1727478264394,0.002656,66025.0,66024.0,0.24930823]
[1727478264570,0.002656,66025.0,66024.0,0.21634642]
[1727478264792,0.002656,66025.0,66024.0,0.28447629]
[1727478265424,0.002656,66025.0,66024.0,0.28447028]
[1727478266608,0.002656,66025.0,66024.0,0.21634642]
[1727478266991,0.002656,66025.0,66024.0,0.22134642]
[1727478267594,0.002656,66025.0,66024.0,0.21634642]
[1727478270286,0.002656,66025.0,66024.0,0.284472]
[1727478278194,0.002656,66025.0,66024.0,0.30718052]
[1727478278409,0.002656,66025.0,66024.0,0.46746846]
[1727478278617,0.002656,66025.0,66024.0,0.37360558]
[1727478278897,0.002656,66025.0,66024.0,0.48714821]
[1727478279098,0.002656,66025.0,66024.0,0.37360558]
[1727478279521,0.002656,66025.0,66024.0,0.76994821]
[1727478279729,0.002656,66025.0,66024.0,0.70900561]
[1727478280157,0.002656,66025.0,66024.0,0.84525677]
[1727478280572,0.001656,66025.0,66024.0,0.83125677]
[1727478280780,0.001656,66025.0,66024.0,0.69500561]
[1727478280985,0.002656,66025.0,66024.0,0.69500561]
[1727478281402,0.001656,66025.0,66024.0,0.69500561]
[1727478281611,0.002656,66025.0,66024.0,0.69500561]
[1727478281818,0.002656,66025.0,66024.0,0.73581569]
[1727478282026,0.002656,66025.0,66024.0,0.74981569]
[1727478283274,0.002656,66025.0,66024.0,0.70900561]
[1727478283487,0.002656,66025.0,66024.0,0.74971678]
[1727478283698,0.002656,66025.0,66024.0,0.88583309]
[1727478284789,0.002656,66025.0,66024.0,0.88580911]
[1727478285001,0.002656,66025.0,66024.0,0.88580875]
[1727478285249,0.002656,66025.0,66024.0,0.88581115]
[1727478285458,0.002656,66025.0,66024.0,0.74971678]
[1727478285668,0.002656,66025.0,66024.0,0.88578848]
[1727478287728,0.002656,66025.0,66024.0,0.74971678]
[1727478288200,0.002656,66025.0,66024.0,0.88578848]
[1727478288634,0.002656,66025.0,66024.0,0.74971678]
[1727478290365,0.002656,66025.0,66024.0,0.75578478]
[1727478292608,0.002656,66025.0,66024.0,0.89174912]
[1727478293029,0.002656,66025.0,66024.0,0.75578478]
[1727478293241,0.002656,66025.0,66024.0,0.85102488]
[1727478293447,0.002656,66025.0,66024.0,0.89151773]
[1727478295296,0.002656,66025.0,66024.0,0.8915004]
[1727478295523,0.002656,66025.0,66024.0,0.75556646]
[1727478296023,0.002656,66025.0,66024.0,0.66116646]
[1727478300413,0.002656,66025.0,66024.0,0.62067361]
[1727478300852,0.002656,66025.0,66024.0,0.661132]
[1727478302885,0.002656,66025.0,66024.0,0.77552617]
[1727478306291,0.002656,66025.0,66024.0,0.73509618]
[1727478306525,0.000828,66035.0,66034.0,0.30585957]
[1727478306777,0.000828,66035.0,66034.0,0.67259231]
[1727478307005,0.000828,66035.0,66034.0,0.60905738]
[1727478308457,0.000828,66035.0,66034.0,0.67698871]
[1727478308945,0.000828,66035.0,66034.0,0.69098871]
[1727478309155,0.000828,66035.0,66034.0,0.70498871]
[1727478311578,0.000828,66035.0,66034.0,0.59056614]
[1727478312228,0.000828,66035.0,66034.0,0.52263481]
[1727478312709,0.000828,66035.0,66034.0,0.57513978]
[1727478313312,0.000828,66035.0,66034.0,0.53466062]
[1727478313466,0.000828,66035.0,66034.0,0.57515652]
[1727478313682,0.000828,66035.0,66034.0,0.57898267]
[1727478316532,0.175328,66035.0,66034.0,0.63367648]
[1727478316748,0.175328,66035.0,66034.0,0.53686469]
[1727478316980,0.175328,66035.0,66034.0,0.51322084]
[1727478317537,0.175328,66035.0,66034.0,0.50822084]
[1727478317734,0.175328,66035.0,66034.0,0.49922084]
[1727478317986,0.175328,66035.0,66034.0,0.50122084]
[1727478318146,0.175328,66035.0,66034.0,0.51522084]
[1727478318344,0.175328,66035.0,66034.0,0.50822084]
[1727478318771,0.175328,66035.0,66034.0,0.49922084]
[1727478319181,0.175328,66035.0,66034.0,0.51322084]
[1727478320190,0.175328,66035.0,66034.0,0.47272494]
[1727478320546,0.175328,66035.0,66034.0,0.5586562]
[1727478321457,0.175328,66035.0,66034.0,0.40336826]
[1727478322251,0.175328,66035.0,66034.0,0.38936826]
[1727478322490,0.175328,66035.0,66034.0,0.37536826]
[1727478322672,0.175328,66035.0,66034.0,0.38943561]
[1727478322873,0.175328,66035.0,66034.0,0.40343561]
[1727478323025,0.175328,66035.0,66034.0,0.40343601]
[1727478323459,0.175328,66035.0,66034.0,0.35806085]
[1727478323662,0.175328,66035.0,66034.0,0.34406085]
[1727478323871,0.175328,66035.0,66034.0,0.38944888]
[1727478324452,0.175328,66035.0,66034.0,0.34406085]
[1727478324868,0.175328,66035.0,66034.0,0.35806085]
[1727478325344,0.175328,66035.0,66034.0,0.317437]
[1727478325558,0.175328,66035.0,66034.0,0.38549974]
[1727478330068,0.175328,66035.0,66034.0,0.36287207]
[1727478330261,0.175328,66035.0,66034.0,0.317437]
[1727478330462,0.175328,66035.0,66034.0,0.37549974]
[1727478330690,0.175328,66035.0,66034.0,0.38549974]
[1727478331134,0.175328,66035.0,66034.0,0.317437]
[1727478331818,0.175328,66035.0,66034.0,0.38549974]
[1727478332324,0.175328,66035.0,66034.0,0.36287414]
[1727478333275,0.175328,66035.0,66034.0,0.36287395]
[1727478335168,0.175328,66035.0,66034.0,0.26287395]
[1727478336196,0.175328,66035.0,66034.0,0.217437]
[1727478336453,0.175328,66035.0,66034.0,0.26287395]
[1727478337072,0.175328,66035.0,66034.0,0.217437]
[1727478344658,0.175328,66035.0,66034.0,0.25832182]
[1727478344880,0.175328,66035.0,66034.0,0.217437]
[1727478345361,0.175328,66035.0,66034.0,0.25832182]
[1727478353505,0.175328,66035.0,66034.0,0.217437]
[1727478353965,0.175328,66035.0,66034.0,0.25836831]
[1727478355414,0.175328,66035.0,66034.0,0.30376708]
[1727478355661,0.175328,66035.0,66034.0,0.25836831]
[1727478355901,0.099528,66035.0,66034.0,0.25836831]
[1727478356146,0.099528,66035.0,66034.0,0.30377195]
[1727478356390,0.099528,66035.0,66034.0,0.25836831]
[1727478357100,0.099528,66035.0,66034.0,0.26036831]
[1727478357578,0.099528,66035.0,66034.0,0.32847232]
[1727478358021,0.099528,66035.0,66034.0,0.32647232]
[1727478358924,0.099528,66035.0,66034.0,0.32651676]
[1727478359598,0.099528,66035.0,66034.0,0.25841275]
[1727478359843,0.099528,66035.0,66034.0,0.32654049]
[1727478360534,0.099528,66035.0,66034.0,0.28557289]
[1727478360780,0.099528,66035.0,66034.0,0.32655466]
[1727478361687,0.099528,66035.0,66034.0,0.34925576]
[1727478361906,0.099528,66035.0,66034.0,0.32656592]
[1727478362244,0.099528,66035.0,66034.0,0.25841877]
[1727478362666,0.099528,66035.0,66034.0,0.34925576]
[1727478363101,0.099528,66035.0,66034.0,0.34929875]
[1727478367040,0.099528,66035.0,66034.0,0.25841877]
[1727478368265,0.099528,66035.0,66034.0,0.34930673]
[1727478368638,0.099528,66035.0,66034.0,0.25841877]
[1727478371636,0.099528,66035.0,66034.0,0.34931163]
[1727478371853,0.099528,66035.0,66034.0,0.25841877]
[1727478372733,0.099528,66035.0,66034.0,0.34930905]
[1727478373612,0.099528,66035.0,66034.0,0.34921889]
[1727478373842,0.099528,66035.0,66034.0,0.34921691]
[1727478374072,0.099528,66035.0,66034.0,0.33921691]
[1727478374382,0.181828,66035.0,66034.0,0.22032861]
[1727478374588,0.181828,66035.0,66034.0,0.26578307]
[1727478374809,0.181828,66035.0,66034.0,0.179437]
[1727478375023,0.181828,66035.0,66034.0,0.26578307]
[1727478375457,0.181828,66035.0,66034.0,0.179437]
[1727478375644,0.181828,66035.0,66034.0,0.22032861]
[1727478377289,0.181828,66035.0,66034.0,0.22033092]
[1727478378224,0.181828,66035.0,66034.0,0.179437]
[1727478378449,0.181828,66035.0,66034.0,0.22033092]
[1727478379396,0.181828,66035.0,66034.0,0.179437]
[1727478382150,0.181828,66035.0,66034.0,0.21219389]
[1727478384417,0.181828,66035.0,66034.0,0.179437]
[1727478384636,0.181828,66035.0,66034.0,0.21219414]
[1727478385116,0.29625057,66035.0,66034.0,0.21219414]
[1727478385361,0.29625057,66035.0,66034.0,0.06075714]
[1727478385620,0.44768457,66035.0,66034.0,0.028]
[1727478386095,0.11525057,66035.0,66025.0,0.001656]
[1727478386338,0.302892,66030.0,66026.0,0.2273175]
[1727478386552,0.325753,66027.0,66026.0,0.2273175]
[1727478386811,0.1743,66026.0,66025.0,0.001656]
[1727478387075,0.17541822,66026.0,66025.0,0.001656]
[1727478388625,0.17541822,66026.0,66025.0,0.010656]
[1727478389117,0.17541822,66026.0,66025.0,0.001656]
[1727478389362,0.17541822,66026.0,66025.0,0.010656]
[1727478389612,0.17541822,66026.0,66025.0,0.017656]
[1727478390908,0.17541822,66026.0,66025.0,0.010656]
[1727478391121,0.17541822,66026.0,66025.0,0.019656]
[1727478392463,0.32687322,66026.0,66025.0,0.019656]
[1727478392678,0.325755,66026.0,66025.0,0.019656]
[1727478394529,0.34950001,66026.0,66025.0,0.019656]
[1727478400188,0.34950001,66026.0,66024.0,0.001656]
[1727478400189,0.19804501,66026.0,66024.0,0.001656]
[1727478400414,0.32687522,66025.0,66024.0,0.001656]
[1727478400644,0.325757,66025.0,66024.0,0.001656]
[1727478400876,0.46064586,66025.0,66024.0,0.001656]
[1727478401130,0.44318857,66021.0,66020.0,0.001656]
[1727478403667,0.46693665,66021.0,66020.0,0.001656]
[1727478403861,0.44618857,66021.0,66020.0,0.001656]
[1727478406071,0.44818857,66021.0,66020.0,0.001656]
[1727478406742,0.44518857,66021.0,66020.0,0.001656]
[1727478406968,0.44618857,66021.0,66020.0,0.001656]
[1727478409301,0.44418857,66021.0,66020.0,0.001656]
[1727478409754,0.44418857,66021.0,66020.0,0.005656]
[1727478409755,0.44318857,66021.0,66020.0,0.005656]
[1727478409984,0.44318857,66021.0,66020.0,0.010656]
[1727478419544,0.44318857,66021.0,66020.0,0.012656]
[1727478425709,0.328766,66021.0,66020.0,0.012656]
[1727478425947,0.44318857,66021.0,66020.0,0.012656]
[1727478431105,0.55974115,66021.0,66020.0,0.012656]
[1727478432398,0.60501523,66021.0,66020.0,0.012656]
[1727478434348,0.55974115,66021.0,66020.0,0.012656]
[1727478435442,0.62792248,66021.0,66020.0,0.012656]
[1727478436339,0.62793327,66021.0,66020.0,0.012656]
[1727478437613,0.55974115,66021.0,66020.0,0.012656]
[1727478438046,0.6279557,66021.0,66020.0,0.012656]
[1727478438452,0.55974115,66021.0,66020.0,0.012656]
[1727478442986,0.44318857,66021.0,66020.0,0.012656]
[1727478443203,0.53409701,66021.0,66020.0,0.012656]
[1727478445180,0.53417283,66021.0,66020.0,0.012656]
[1727478446379,0.44318857,66021.0,66020.0,0.012656]
[1727478446583,0.55691889,66021.0,66020.0,0.012656]
[1727478446790,0.67352598,66021.0,66020.0,0.012656]
[1727478450013,0.55979566,66021.0,66020.0,0.012656]
[1727478454170,0.55979566,66021.0,66012.0,0.0495689]
[1727478454171,0.151485,66013.0,66012.0,0.0495689]
[1727478454391,0.55391179,66013.0,66012.0,0.0495689]
[1727478454609,0.249187,66012.0,66011.0,0.001656]
[1727478454834,0.25030522,66012.0,66011.0,0.001656]
[1727478455047,0.32690522,66012.0,66011.0,0.001656]
[1727478455265,0.325787,66012.0,66011.0,0.001656]
[1727478455508,0.45701944,66012.0,66011.0,0.001656]
[1727478456343,0.45901944,66012.0,66011.0,0.001656]
[1727478457330,0.57260361,66012.0,66011.0,0.001656]
[1727478457745,0.57460361,66012.0,66011.0,0.001656]
[1727478459500,0.46101944,66012.0,66011.0,0.001656]
[1727478459715,0.57460361,66012.0,66011.0,0.001656]
[1727478459935,0.57455962,66012.0,66011.0,0.001656]
[1727478460399,0.46101944,66012.0,66011.0,0.001656]
[1727478461491,0.66624935,66012.0,66011.0,0.001656]
[1727478461937,0.57544201,66012.0,66011.0,0.001656]
[1727478462169,0.66624935,66012.0,66011.0,0.001656]
[1727478462386,0.57544201,66012.0,66011.0,0.001656]
[1727478464514,0.64352931,66012.0,66011.0,0.001656]
[1727478464937,0.64352823,66012.0,66011.0,0.001656]
[1727478466190,0.6435225,66012.0,66011.0,0.001656]
[1727478466646,0.44420957,66012.0,66011.0,0.001656]
[1727478467966,0.29857233,66012.0,66011.0,0.001656]
[1727478468183,0.36760957,66012.0,66011.0,0.001656]
[1727478469030,0.36560957,66012.0,66011.0,0.001656]
[1727478469258,0.36360957,66012.0,66011.0,0.003656]
[1727478469461,0.36360957,66012.0,66011.0,0.006656]
[1727478471170,0.26590957,66012.0,66011.0,0.006656]
[1727478475093,0.39315256,66012.0,66011.0,0.006656]
[1727478477405,0.48645256,66012.0,66011.0,0.006656]
[1727478480580,0.61113883,66012.0,66011.0,0.006656]
[1727478481461,0.56575256,66012.0,66011.0,0.006656]
[1727478481686,0.61114637,66012.0,66011.0,0.006656]
[1727478481912,0.56575256,66012.0,66011.0,0.006656]
[1727478482173,0.61114579,66012.0,66011.0,0.006656]
[1727478482394,0.56575256,66012.0,66011.0,0.006656]
[1727478485071,0.61115945,66012.0,66011.0,0.006656]
[1727478485292,0.56575256,66012.0,66011.0,0.006656]
[1727478485793,0.61116347,66012.0,66011.0,0.006656]
[1727478486447,0.56575256,66012.0,66011.0,0.006656]
[1727478488482,0.63387882,66012.0,66011.0,0.006656]
[1727478488900,0.63388429,66012.0,66011.0,0.006656]
[1727478490146,0.65658757,66012.0,66011.0,0.006656]
[1727478491168,0.65658757,66012.0,65998.0,0.001656]
[1727478491169,0.151515,66000.0,65998.0,0.001656]
[1727478491387,0.44033757,66000.0,65998.0,0.2289735]
[1727478491618,0.151517,65999.0,65998.0,0.001656]
[1727478491841,0.15263522,65999.0,65998.0,0.001656]
[1727478492740,0.26212982,65999.0,65998.0,0.001656]
[1727478493152,0.15363522,65999.0,65998.0,0.013656]
[1727478494027,0.15463522,65999.0,65998.0,0.025656]
[1727478496906,0.00311822,65999.0,65998.0,0.025656]
[1727478497121,0.00311822,65999.0,65998.0,0.033281]
[1727478497389,0.002,65999.0,65998.0,0.033281]
[1727478497816,0.19161678,65999.0,65998.0,0.033281]
[1727478498029,0.153517,65999.0,65998.0,0.033281]
[1727478498238,0.153517,65999.0,65998.0,0.1848]
[1727478498239,0.002,65999.0,65998.0,0.1848]
[1727478498447,0.002,65999.0,65998.0,0.033281]
[1727478499312,0.153517,65999.0,65998.0,0.033281]
[1727478499742,0.002,65999.0,65998.0,0.033281]
[1727478500636,0.002,65999.0,65998.0,0.2641]
[1727478518918,0.002,65999.0,65998.0,0.1848]
[1727478551514,0.002,65999.0,65998.0,0.21717018]
[1727478552543,0.002,65999.0,65998.0,0.21709322]
[1727478553910,0.002,65999.0,65998.0,0.21706618]
[1727478557215,0.002,65999.0,65998.0,0.21709293]
[1727478563950,0.002,65999.0,65998.0,0.21702942]
[1727478566908,0.002,65999.0,65998.0,0.23719664]
[1727478567136,0.002,65999.0,65998.0,0.1848]
[1727478567358,0.002,65999.0,65998.0,0.23722804]
[1727478567568,0.002,65999.0,65998.0,0.20496463]
[1727478570535,0.002,65999.0,65998.0,0.1848]
[1727478570741,0.002,65999.0,65998.0,0.20493665]
[1727478574264,0.002,65999.0,65998.0,0.1848]
[1727478574715,0.002,65999.0,65998.0,0.20495806]
[1727478574952,0.002,65999.0,65998.0,0.1848]
[1727478575644,0.002,65999.0,65998.0,0.2049585]
[1727478575859,0.002,65999.0,65998.0,0.1848]
[1727478576078,0.002,65999.0,65998.0,0.20496676]
[1727478576559,0.002,65999.0,65998.0,0.1848]
[1727478576770,0.002,65999.0,65998.0,0.2049467]
[1727478582224,0.002,65999.0,65998.0,0.2049607]
[1727478585602,0.002,65999.0,65998.0,0.20494041]
[1727478589199,0.002,65999.0,65998.0,0.1848]
[1727478589455,0.002,65999.0,65998.0,0.20494941]
[1727478596256,0.002,65999.0,65998.0,0.1848]
[1727478596495,0.002,65999.0,65998.0,0.2049387]
[1727478599819,0.002,65999.0,65998.0,0.1848]
[1727478600043,0.002,65999.0,65998.0,0.20493934]
[1727478602474,0.002,65999.0,65998.0,0.1848]
[1727478602709,0.002,65999.0,65998.0,0.20508993]
[1727478606088,0.002,65999.0,65998.0,0.20504587]
[1727478609587,0.002,65999.0,65998.0,0.1848]
[1727478609814,0.002,65999.0,65998.0,0.20504347]
[1727478613287,0.002,65999.0,65998.0,0.1848]
[1727478613508,0.002,65999.0,65998.0,0.20504029]
[1727478613725,0.002,65999.0,65998.0,0.20503902]
[1727478616965,0.002,65999.0,65998.0,0.1848]
[1727478617203,0.002,65999.0,65998.0,0.20504185]
[1727478621675,0.0983,65999.0,65998.0,0.20504185]
[1727478627463,0.0983,65999.0,65998.0,0.1848]
[1727478627671,0.0983,65999.0,65998.0,0.20504331]
[1727478627909,0.0983,65999.0,65998.0,0.205034]
[1727478635802,0.0983,65999.0,65998.0,0.1848]
[1727478636003,0.0983,65999.0,65998.0,0.204992]
[1727478637955,0.0983,65999.0,65998.0,0.20498595]
[1727478638229,0.0983,65999.0,65998.0,0.20498626]
[1727478640140,0.0983,65999.0,65998.0,0.1848]
[1727478640343,0.0983,65999.0,65998.0,0.20503236]
[1727478643583,0.0983,65999.0,65998.0,0.20503468]
[1727478647518,0.0983,65999.0,65998.0,0.2050289]
[1727478658621,0.0983,65999.0,65998.0,0.22525842]
[1727478660959,0.21272257,65999.0,65998.0,0.22525842]
[1727478665394,0.21272257,65999.0,65998.0,0.07373942]
[1727478665395,0.44095779,65999.0,65998.0,0.07373942]
[1727478665624,0.43983957,65999.0,65998.0,0.0535102]
[1727478665852,0.43983957,65999.0,65998.0,0.0458852]
[1727478666090,0.57640438,65999.0,65998.0,0.0458852]
[1727478666325,0.59622763,65999.0,65998.0,0.0458852]
[1727478666552,0.59522763,65999.0,65998.0,0.0338852]
[1727478666772,0.73169178,65999.0,65998.0,0.0338852]
[1727478667017,0.73169178,65999.0,65998.0,0.0218852]
[1727478667018,0.73069178,65999.0,65998.0,0.0218852]
[1727478667236,0.73169178,65999.0,65998.0,0.0328852]
[1727478667479,0.59522763,65999.0,65998.0,0.0328852]
[1727478667751,0.59422763,65999.0,65998.0,0.0248852]
[1727478667979,0.59422763,65999.0,65998.0,0.0218852]
[1727478668213,0.59722763,65999.0,65998.0,0.0218852]